{"text_format":"3","workbook":"xlsx","n_sheets":1,"sheets":["ONGELMAN TIEDOT JA KAAVIO"],"not_rendered":{"charts":1,"defined_names":13},"read":"whole","date_system":"1900"}

{"sheet":"ONGELMAN TIEDOT JA KAAVIO","index":0,"n_rows":17,"n_cols":5,"rows_kept":17}
[null,"ONGELMA-ANALYYSI – PARETO"]
[null,"Tässä solussa on Pareto-kaavio, jossa on kumulatiivinen prosenttiosuus kaikkien ongelma-alueiden esiintymien määrästä."]
[]
[null,"ONGELMAN TIEDOT"]
[]
[null,"ONGELMAN ALUE","ESIINTYMÄT","PROSENTTIOSUUS KOKONAISMÄÄRÄSTÄ","KUMULATIIVINEN PROSENTTIOSUUS"]
[null,"Vaihteisto",35,{"$f":"IFERROR(Tiedot[[#This Row],[ESIINTYMÄT]]/SUM(Tiedot[ESIINTYMÄT]), \"\")","v":{"v":0.23178807947019867,"d":"23.18%"}},{"$f":"IFERROR(SUM(INDEX(Tiedot[ESIINTYMÄT],1):Tiedot[[#This Row],[ESIINTYMÄT]])/SUM(Tiedot[ESIINTYMÄT]), \"\")","v":{"v":0.23178807947019867,"d":"23.18%"}}]
[null,"Polttoainejärjestelmä",25,{"$f":"IFERROR(Tiedot[[#This Row],[ESIINTYMÄT]]/SUM(Tiedot[ESIINTYMÄT]), \"\")","v":{"v":0.16556291390728478,"d":"16.56%"}},{"$f":"IFERROR(SUM(INDEX(Tiedot[ESIINTYMÄT],1):Tiedot[[#This Row],[ESIINTYMÄT]])/SUM(Tiedot[ESIINTYMÄT]), \"\")","v":{"v":0.3973509933774834,"d":"39.74%"}}]
[null,"Sekalaiset",21,{"$f":"IFERROR(Tiedot[[#This Row],[ESIINTYMÄT]]/SUM(Tiedot[ESIINTYMÄT]), \"\")","v":{"v":0.1390728476821192,"d":"13.91%"}},{"$f":"IFERROR(SUM(INDEX(Tiedot[ESIINTYMÄT],1):Tiedot[[#This Row],[ESIINTYMÄT]])/SUM(Tiedot[ESIINTYMÄT]), \"\")","v":{"v":0.5364238410596026,"d":"53.64%"}}]
[null,"Meluisa",18,{"$f":"IFERROR(Tiedot[[#This Row],[ESIINTYMÄT]]/SUM(Tiedot[ESIINTYMÄT]), \"\")","v":{"v":0.11920529801324503,"d":"11.92%"}},{"$f":"IFERROR(SUM(INDEX(Tiedot[ESIINTYMÄT],1):Tiedot[[#This Row],[ESIINTYMÄT]])/SUM(Tiedot[ESIINTYMÄT]), \"\")","v":{"v":0.6556291390728477,"d":"65.56%"}}]
[null,"Kuljettajan ohjaimet",13,{"$f":"IFERROR(Tiedot[[#This Row],[ESIINTYMÄT]]/SUM(Tiedot[ESIINTYMÄT]), \"\")","v":{"v":0.08609271523178808,"d":"8.61%"}},{"$f":"IFERROR(SUM(INDEX(Tiedot[ESIINTYMÄT],1):Tiedot[[#This Row],[ESIINTYMÄT]])/SUM(Tiedot[ESIINTYMÄT]), \"\")","v":{"v":0.7417218543046358,"d":"74.17%"}}]
[null,"Muu sähkövika",12,{"$f":"IFERROR(Tiedot[[#This Row],[ESIINTYMÄT]]/SUM(Tiedot[ESIINTYMÄT]), \"\")","v":{"v":0.07947019867549669,"d":"7.95%"}},{"$f":"IFERROR(SUM(INDEX(Tiedot[ESIINTYMÄT],1):Tiedot[[#This Row],[ESIINTYMÄT]])/SUM(Tiedot[ESIINTYMÄT]), \"\")","v":{"v":0.8211920529801324,"d":"82.12%"}}]
[null,"Sytytys",10,{"$f":"IFERROR(Tiedot[[#This Row],[ESIINTYMÄT]]/SUM(Tiedot[ESIINTYMÄT]), \"\")","v":{"v":0.06622516556291391,"d":"6.62%"}},{"$f":"IFERROR(SUM(INDEX(Tiedot[ESIINTYMÄT],1):Tiedot[[#This Row],[ESIINTYMÄT]])/SUM(Tiedot[ESIINTYMÄT]), \"\")","v":{"v":0.8874172185430463,"d":"88.74%"}}]
[null,"Jäähdytysjärjestelmä",7,{"$f":"IFERROR(Tiedot[[#This Row],[ESIINTYMÄT]]/SUM(Tiedot[ESIINTYMÄT]), \"\")","v":{"v":0.046357615894039736,"d":"4.64%"}},{"$f":"IFERROR(SUM(INDEX(Tiedot[ESIINTYMÄT],1):Tiedot[[#This Row],[ESIINTYMÄT]])/SUM(Tiedot[ESIINTYMÄT]), \"\")","v":{"v":0.9337748344370861,"d":"93.38%"}}]
[null,"Jarrutus",5,{"$f":"IFERROR(Tiedot[[#This Row],[ESIINTYMÄT]]/SUM(Tiedot[ESIINTYMÄT]), \"\")","v":{"v":0.033112582781456956,"d":"3.31%"}},{"$f":"IFERROR(SUM(INDEX(Tiedot[ESIINTYMÄT],1):Tiedot[[#This Row],[ESIINTYMÄT]])/SUM(Tiedot[ESIINTYMÄT]), \"\")","v":{"v":0.9668874172185431,"d":"96.69%"}}]
[null,"Päästöt",3,{"$f":"IFERROR(Tiedot[[#This Row],[ESIINTYMÄT]]/SUM(Tiedot[ESIINTYMÄT]), \"\")","v":{"v":0.019867549668874173,"d":"1.99%"}},{"$f":"IFERROR(SUM(INDEX(Tiedot[ESIINTYMÄT],1):Tiedot[[#This Row],[ESIINTYMÄT]])/SUM(Tiedot[ESIINTYMÄT]), \"\")","v":{"v":0.9867549668874173,"d":"98.68%"}}]
[null,"Ohjaus",2,{"$f":"IFERROR(Tiedot[[#This Row],[ESIINTYMÄT]]/SUM(Tiedot[ESIINTYMÄT]), \"\")","v":{"v":0.013245033112582781,"d":"1.32%"}},{"$f":"IFERROR(SUM(INDEX(Tiedot[ESIINTYMÄT],1):Tiedot[[#This Row],[ESIINTYMÄT]])/SUM(Tiedot[ESIINTYMÄT]), \"\")","v":{"v":1,"d":"100.00%"}}]